bitfinex-derivatives/quotes_ETHF0:USTF0_20260222
["timestamp","ask_amount","ask_price","bid_price","bid_amount"]
[1771777172730,1.22994284,1951.6,1951.0,0.57884439]
[1771777172930,5.98519933,1951.5,1951.0,0.57884439]
[1771777173130,5.98519933,1951.4,1951.0,0.57884439]
[1771777173331,0.05267841,1951.4,1951.0,0.57884439]
[1771777174033,0.05227865,1951.5,1951.0,0.57884439]
[1771777174234,5.93253126,1951.4,1951.0,0.57884439]
[1771777174434,0.05227865,1951.5,1951.0,0.57884439]
[1771777174731,5.93257008,1951.4,1951.0,0.57884439]
[1771777175032,0.05227865,1951.5,1951.0,0.57884439]
[1771777175231,5.93257147,1951.4,1951.0,0.57884439]
[1771777175434,0.05227865,1951.5,1951.0,0.57884439]
[1771777175733,5.93261657,1951.4,1951.0,0.57884439]
[1771777175932,0.05227865,1951.5,1951.0,0.57884439]
[1771777176135,5.93263167,1951.4,1951.0,0.57884439]
[1771777176335,0.05227865,1951.5,1951.0,0.57884439]
[1771777176534,5.93268268,1951.4,1951.0,0.57884439]
[1771777176734,0.05227865,1951.5,1951.0,0.57884439]
[1771777176936,5.93268268,1951.4,1951.0,0.57884439]
[1771777177237,0.05227865,1951.5,1951.0,0.57884439]
[1771777177435,5.93277366,1951.4,1951.0,0.57884439]
[1771777177734,0.05227865,1951.5,1951.0,0.57884439]
[1771777179238,1.17726443,1951.6,1951.0,0.57884439]
[1771777179439,5.93288005,1951.5,1951.0,0.57884439]
[1771777179737,1.22895515,1951.6,1951.0,0.57884439]
[1771777179937,5.98461398,1951.5,1951.0,0.57884439]
[1771777180137,0.05169072,1951.5,1951.0,0.57884439]
[1771777181141,0.05170328,1951.6,1951.0,0.57884439]
[1771777181341,5.93314928,1951.5,1951.0,0.57884439]
[1771777181641,0.05170328,1951.6,1951.0,0.57884439]
[1771777181840,5.93316077,1951.5,1951.0,0.57884439]
[1771777182040,4.28535002,1951.7,1951.0,0.57884439]
[1771777182240,5.93822901,1951.6,1951.0,0.57884439]
[1771777182441,5.93822901,1951.5,1951.0,0.57884439]
[1771777182641,4.33748563,1951.7,1951.0,0.57884439]
[1771777182842,5.93821744,1951.6,1951.0,0.57884439]
[1771777183041,5.93821744,1951.5,1951.0,0.57884439]
[1771777183243,4.33748563,1951.7,1951.0,0.57884439]
[1771777183443,5.93827684,1951.6,1951.0,0.57884439]
[1771777183643,5.93827684,1951.5,1951.0,0.57884439]
[1771777183842,4.33748563,1951.7,1951.0,0.57884439]
[1771777184141,5.93819572,1951.6,1951.0,0.57884439]
[1771777184343,5.93819572,1951.5,1951.0,0.57884439]
[1771777184543,4.33748563,1951.7,1951.0,0.57884439]
[1771777184734,5.9897709,1951.6,1951.0,0.57884439]
[1771777184935,5.9383133,1951.5,1951.0,0.57884439]
[1771777185135,0.0514576,1951.6,1951.0,0.57884439]
[1771777185436,5.93800985,1951.5,1951.0,0.57884439]
[1771777185634,0.0514576,1951.6,1951.0,0.57884439]
[1771777185843,5.9379976,1951.5,1951.0,0.57884439]
[1771777186143,0.0514576,1951.6,1951.0,0.57884439]
[1771777186443,5.93815187,1951.5,1951.0,0.57884439]
[1771777186642,0.0514576,1951.6,1951.0,0.57884439]
[1771777186844,5.93812951,1951.5,1951.0,0.57884439]
[1771777187045,0.0514576,1951.6,1951.0,0.57884439]
[1771777187246,5.93812534,1951.5,1951.0,0.57884439]
[1771777187446,4.33775027,1951.7,1951.0,0.57884439]
[1771777187645,5.93828643,1951.6,1951.0,0.57884439]
[1771777187846,5.93828643,1951.5,1951.0,0.57884439]
[1771777188046,4.33775027,1951.7,1951.0,0.57884439]
[1771777188247,5.9382687,1951.6,1951.0,0.57884439]
[1771777188446,5.9382687,1951.5,1951.0,0.57884439]
[1771777188646,4.33775027,1951.7,1951.0,0.57884439]
[1771777188847,5.9383514,1951.6,1951.0,0.57884439]
[1771777189148,5.9383514,1951.5,1951.1,0.59600551]
[1771777189449,4.33448096,1951.7,1951.1,0.59600551]
[1771777189644,5.93685471,1951.6,1951.1,0.59600551]
[1771777189844,5.93685471,1951.5,1951.1,0.59600551]
[1771777190047,0.05009821,1951.6,1951.1,0.59600551]
[1771777190348,5.93687266,1951.5,1951.1,0.59600551]
[1771777190548,0.05009821,1951.6,1951.1,0.59600551]
[1771777190748,5.93681251,1951.5,1951.1,0.59600551]
[1771777190949,0.05009821,1951.6,1951.1,0.59600551]
[1771777191149,5.93695267,1951.5,1951.1,0.59600551]
[1771777191349,4.33492815,1951.7,1951.1,0.59600551]
[1771777191550,5.93691676,1951.6,1951.1,0.59600551]
[1771777191749,5.93691676,1951.5,1951.1,0.59600551]
[1771777191951,0.0505454,1951.6,1951.1,0.59600551]
[1771777192149,5.93691576,1951.5,1951.1,0.59600551]
[1771777192349,0.0505454,1951.6,1951.1,0.59600551]
[1771777192551,5.93677714,1951.5,1951.1,0.59600551]
[1771777192751,0.0505454,1951.6,1951.1,0.59600551]
[1771777192952,5.93677714,1951.5,1951.1,0.59600551]
[1771777193253,4.33192973,1951.8,1951.1,0.59600551]
[1771777193452,5.93644839,1951.7,1951.1,0.59600551]
[1771777193753,5.93644839,1951.6,1951.1,0.59600551]
[1771777193952,0.04754698,1951.8,1951.1,0.59600551]
[1771777194154,5.93682787,1951.7,1951.1,0.59600551]
[1771777194452,0.04754698,1951.8,1951.1,0.59600551]
[1771777194646,5.93541683,1951.7,1951.1,0.59600551]
[1771777194843,0.04754698,1951.8,1951.1,0.59600551]
[1771777195044,5.93478483,1951.7,1951.1,0.59600551]
[1771777195246,0.04754698,1951.8,1951.1,0.59600551]
[1771777195444,5.9332949,1951.7,1951.1,0.59600551]
[1771777195645,0.04754698,1951.8,1951.1,0.59600551]
[1771777195855,5.93330905,1951.7,1951.1,0.59600551]
[1771777196054,0.04754698,1951.8,1951.1,0.59600551]
[1771777196254,5.93331497,1951.7,1951.1,0.59600551]
[1771777196456,0.04754698,1951.8,1951.1,0.59600551]
[1771777196457,0.00637925,1951.8,1951.1,0.59600551]
[1771777198249,0.04977738,1951.8,1951.1,0.59600551]
[1771777200758,0.00637925,1951.8,1951.1,0.59600551]
[1771777203159,0.04711797,1951.8,1951.1,0.59600551]
[1771777208963,0.00637925,1951.8,1951.1,0.85234551]
[1771777209167,0.00637925,1951.8,1951.2,0.59320684]
[1771777212561,0.00637925,1951.8,1951.2,1.77013368]
[1771777212767,0.02177544,1952.2,1951.3,0.59544388]
[1771777212960,4.28438275,1952.3,1951.3,0.59544388]
[1771777212961,5.93060625,1952.1,1951.3,0.59544388]
[1771777213266,0.02815469,1952.1,1951.3,0.59544388]
[1771777213761,0.03442428,1952.1,1951.3,0.59544388]
[1771777218868,0.00626959,1952.1,1951.3,0.59544388]
[1771777222670,0.00626959,1952.1,1951.5,0.6023394]
[1771777229475,0.04106728,1952.5,1951.5,0.6023394]
[1771777229667,5.90095536,1952.4,1951.5,0.6023394]
[1771777229974,0.04106728,1952.5,1951.5,0.6023394]
[1771777229975,40.84106728,1952.5,1951.5,0.6023394]
[1771777230175,5.90091033,1952.4,1951.5,0.6023394]
[1771777230376,0.00426994,1952.4,1951.5,0.6023394]
[1771777241280,0.00426994,1952.4,1951.5,8.66497242]
[1771777241481,0.00426994,1952.4,1951.6,0.57988498]
[1771777247384,0.05716912,1952.7,1951.8,0.57761708]
[1771777247581,0.05716912,1952.5,1951.8,0.57761708]
[1771777248382,0.06341406,1952.5,1951.8,0.57761708]
[1771777249789,0.00624494,1952.5,1951.8,0.57761708]
[1771777257497,0.00624494,1952.5,1952.0,0.57715372]
[1771777264795,1.26872098,1952.5,1952.0,0.57715372]
[1771777266599,1.74175491,1952.3,1951.8,0.57668391]
[1771777266805,1.17587256,1952.1,1951.8,0.57668391]
[1771777266999,0.56588235,1952.2,1951.8,0.57668391]
[1771777279009,1.17587256,1952.3,1951.8,0.57668391]
[1771777279211,1.77622783,1952.3,1951.8,0.57668391]
[1771777281610,1.17587256,1952.3,1951.8,0.57668391]
[1771777281810,1.77622783,1952.3,1951.8,0.57668391]
[1771777289315,1.77622783,1952.3,1951.4,8.06263302]
[1771777289316,1.77622783,1952.0,1951.7,0.54573065]
[1771777289516,1.77622783,1952.0,1951.4,0.54573065]
[1771777291119,0.60035527,1952.0,1951.4,0.54573065]
[1771777295318,1.17587256,1951.8,1951.4,0.54573065]
[1771777295518,0.60035527,1951.7,1951.3,0.54573065]
[1771777305528,0.60035527,1951.7,1951.1,0.56015586]
[1771777311130,0.60035527,1951.7,1950.9,0.56546554]
[1771777311330,0.60035527,1951.7,1951.3,0.56015586]
[1771777312631,0.57669875,1952.3,1951.5,0.56015586]
[1771777312831,0.57669875,1952.1,1951.5,0.56015586]
[1771777320830,0.57669875,1952.1,1951.1,1.43284034]
[1771777321034,0.57669875,1952.1,1951.4,0.56015586]
[1771777321233,0.57669875,1951.9,1951.2,0.56015586]
[1771777328036,0.57669875,1951.9,1951.1,0.84226187]
[1771777328237,0.59618505,1951.7,1951.1,0.84226187]
[1771777328437,0.59618505,1951.7,1951.2,0.58593187]
[1771777328736,0.59618505,1951.7,1951.0,0.58593187]
[1771777332239,0.59618505,1951.5,1951.0,0.58593187]
[1771777340247,0.59618505,1951.5,1950.9,0.5933883]
[1771777357055,45.068171,1951.7,1950.9,0.5933883]
[1771777357056,0.60512061,1951.6,1950.9,0.5933883]
[1771777357357,5.91637117,1951.5,1950.9,0.5933883]
[1771777357560,0.60512061,1951.6,1950.9,0.5933883]
[1771777357857,6.52147206,1951.5,1950.9,0.5933883]
[1771777358062,0.60512061,1951.5,1950.9,0.5933883]
[1771777361662,0.54872616,1951.3,1950.9,0.5933883]
[1771777373577,4.268171,1951.6,1950.9,0.5933883]
[1771777373578,0.54872616,1951.5,1950.9,0.5933883]
[1771777373769,0.54872616,1951.4,1950.9,0.5933883]
[1771777380678,0.54872616,1951.0,1950.6,0.55744419]
[1771777380974,4.54192495,1951.6,1950.5,1.56345243]
[1771777380975,0.54872616,1950.8,1950.5,1.56345243]
[1771777381779,0.55296482,1950.8,1950.5,0.56402392]
[1771777382284,0.00423866,1950.8,1950.5,0.56402392]
[1771777384481,0.54872616,1951.2,1950.5,0.56402392]
[1771777385376,0.55268822,1951.2,1950.5,0.56402392]
[1771777391686,0.00396206,1951.2,1950.9,0.58546728]
[1771777391879,0.56107497,1951.2,1950.9,0.58546728]
[1771777392782,0.55711291,1951.3,1950.9,0.58546728]
[1771777393785,0.56070309,1951.3,1950.9,0.58546728]
[1771777395195,0.00359018,1951.3,1950.9,0.58546728]
[1771777400195,0.56249495,1951.5,1950.9,0.58546728]
[1771777401294,0.56808925,1951.5,1950.9,0.58546728]
[1771777404394,0.0055943,1951.5,1950.9,0.58546728]
[1771777404597,0.56808925,1951.5,1950.9,0.58546728]
[1771777405399,0.56808925,1951.5,1951.1,0.56594612]
[1771777408206,0.56808925,1951.5,1951.0,0.56594612]
[1771777411803,0.56249495,1951.3,1950.9,0.56594612]
[1771777412008,0.56249495,1951.3,1950.6,0.56594612]
[1771777417015,0.56249495,1951.1,1950.6,0.56594612]
[1771777422218,0.56249495,1951.1,1950.5,0.58371057]
[1771777429529,0.55494041,1950.9,1950.5,0.58371057]
[1771777430928,0.55494041,1951.1,1950.5,0.58371057]
[1771777469347,0.56062758,1950.9,1950.4,0.58157878]
[1771777469553,5.94185169,1951.0,1950.4,0.58157878]
[1771777469554,0.56062758,1950.7,1950.4,0.58157878]
[1771777470254,0.56062758,1950.7,1950.4,0.58768868]
[1771777470453,0.56062758,1950.7,1950.1,0.51330069]
[1771777471553,0.56062758,1950.7,1950.1,0.51894793]
[1771777473251,0.56062758,1950.7,1950.1,0.51900563]
[1771777479654,0.56062758,1950.7,1950.1,0.51383194]
[1771777481963,0.56062758,1950.7,1950.1,0.00564724]
[1771777486669,0.58331599,1950.5,1950.1,0.00564724]
[1771777493974,0.58331599,1950.5,1949.8,0.49751506]
[1771777495175,0.58331599,1950.5,1949.8,0.50109899]
[1771777501675,0.58331599,1950.5,1950.2,0.49202802]
[1771777501872,0.58331599,1950.7,1950.3,0.55675038]
[1771777502070,0.58331599,1950.7,1950.4,0.55675038]
[1771777502267,0.58331599,1950.7,1950.2,0.55675038]
[1771777502471,1.17848148,1950.6,1950.0,0.55675038]
[1771777502674,1.17848148,1950.6,1949.8,0.00358393]
[1771777502675,0.58331599,1950.5,1949.8,0.00358393]
[1771777503174,0.58331599,1950.5,1949.8,0.56033431]
[1771777506379,0.58331599,1950.3,1949.8,0.56033431]
[1771777506977,0.58331599,1950.7,1950.0,0.55675038]
[1771777507180,0.58331599,1950.5,1950.0,0.55675038]
[1771777507881,0.58331599,1950.5,1950.2,0.55675038]
[1771777508079,0.58331599,1950.8,1950.2,0.55675038]
[1771777509378,0.58331599,1950.8,1949.9,1.17848148]
[1771777509379,0.58331599,1950.8,1950.0,0.5531776]
[1771777509581,0.57781189,1950.6,1950.0,0.5531776]
[1771777509979,0.57781189,1950.6,1949.8,0.55676153]
[1771777510282,0.57781189,1950.4,1949.8,0.55676153]
[1771777512683,0.57781189,1950.2,1949.4,0.8097276]
[1771777513082,0.57781189,1950.2,1949.5,0.5531776]
[1771777513682,0.57781189,1950.0,1949.5,0.55772723]
[1771777513883,0.58218176,1950.0,1949.5,0.55772723]
[1771777514276,0.00436987,1950.0,1949.8,0.5531776]
[1771777514480,0.57781189,1950.3,1949.8,0.5531776]
[1771777515385,0.58235908,1950.3,1949.8,0.5531776]
[1771777516683,0.56485204,1950.5,1949.8,0.5531776]
[1771777516888,0.56485204,1950.8,1950.2,0.56067723]
[1771777517187,0.56485204,1950.6,1950.2,0.56067723]
[1771777517685,0.57059838,1950.6,1950.2,0.56067723]
[1771777521085,0.57059838,1950.6,1949.6,8.61048195]
[1771777521290,0.57059838,1950.6,1949.7,0.56067723]
[1771777521291,0.56485204,1950.3,1949.7,0.56067723]
[1771777524589,0.00574634,1950.6,1950.1,0.56067723]
[1771777524792,0.57059838,1950.6,1950.1,0.56067723]
[1771777530796,0.57059838,1950.6,1949.6,8.61048195]
[1771777531093,0.56485204,1950.3,1949.6,0.56067723]
[1771777533401,0.56485204,1950.3,1949.8,0.56067723]
[1771777533904,0.56485204,1950.5,1949.8,0.56067723]
[1771777538516,0.56485204,1950.5,1950.0,0.59482383]
[1771777539811,0.56485204,1950.5,1949.8,0.59482383]
[1771777540012,0.60678567,1950.3,1949.8,0.59482383]
[1771777541613,0.60678567,1950.5,1949.8,0.59482383]
[1771777542612,0.60678567,1950.5,1949.7,1.17848148]
[1771777542613,0.60678567,1950.1,1949.7,0.59482383]
[1771777551118,0.60678567,1950.3,1949.7,0.59482383]
[1771777551319,0.60678567,1950.5,1949.9,0.59482383]
[1771777558531,0.60678567,1950.5,1949.7,0.59482383]
[1771777570540,0.55251124,1950.3,1949.7,0.59482383]
[1771777576853,0.55251124,1950.3,1949.4,8.30635472]
[1771777577055,0.55251124,1950.3,1948.9,21.81619552]
[1771777577056,0.5469755,1950.1,1949.3,0.60583005]
[1771777578055,0.5469755,1950.1,1949.3,0.6112449]
[1771777579850,0.5469755,1950.1,1949.5,0.60583005]
[1771777581462,0.5469755,1950.1,1949.5,0.61037968]
[1771777581653,0.5469755,1950.1,1949.5,0.60583005]
[1771777581961,0.5469755,1950.1,1949.5,0.61037968]
[1771777589863,0.5469755,1950.1,1949.7,0.60583005]
[1771777590964,0.5469755,1950.1,1949.7,0.61037968]
[1771777591364,0.5469755,1950.1,1949.3,0.6112449]
[1771777591562,0.5469755,1950.1,1949.4,0.00454963]
[1771777591973,0.5469755,1950.1,1949.4,0.61037968]
[1771777592562,1.72558804,1950.1,1949.3,0.00541485]
[1771777592764,0.5469755,1949.9,1949.1,0.60583005]
[1771777593266,0.5469755,1949.7,1949.1,0.60583005]
[1771777593667,0.5469755,1949.7,1949.2,0.00454963]
[1771777593868,0.5469755,1949.7,1948.6,0.60583005]
[1771777594163,0.5469755,1949.5,1948.7,0.61079768]
[1771777594467,0.5469755,1949.4,1948.7,0.60583005]
[1771777594967,0.5469755,1949.4,1948.7,0.01030473]
[1771777595360,0.5469755,1949.4,1947.9,8.30656472]
[1771777595560,0.5469755,1949.4,1948.2,0.60583005]
[1771777596571,0.5469755,1949.4,1948.2,0.61013047]
[1771777596772,0.5469755,1949.1,1948.3,0.61079768]
[1771777597070,0.55210522,1949.1,1948.3,0.61079768]
[1771777597271,0.55210522,1949.1,1948.3,0.60583005]
[1771777598067,0.55210522,1949.1,1948.2,0.00430042]
[1771777598269,0.56426866,1948.8,1948.2,0.00926805]
[1771777599065,0.56426866,1948.8,1947.9,0.57247393]
[1771777599267,1.17861254,1948.9,1947.7,0.9724174]
[1771777599268,0.56426866,1948.5,1947.8,0.57247393]
[1771777599664,0.56426866,1948.3,1947.8,0.57247393]
[1771777600166,0.56426866,1948.3,1947.8,0.57864395]
[1771777600364,0.56426866,1948.4,1947.8,0.57864395]
[1771777600568,0.56426866,1948.8,1947.8,0.57864395]
[1771777600966,0.56426866,1948.6,1947.8,0.57864395]
[1771777604678,0.56426866,1948.6,1947.9,0.57247393]
[1771777606081,0.56426866,1948.9,1947.9,0.57247393]
[1771777606580,0.56426866,1948.9,1948.2,0.57247393]
[1771777613186,0.56426866,1948.5,1947.8,0.00617002]
[1771777613485,0.56426866,1948.5,1947.7,0.9724174]
[1771777614386,0.56426866,1948.5,1947.7,0.97610263]
[1771777615482,0.56426866,1948.5,1947.7,1.54857656]
[1771777615686,0.56426866,1948.5,1947.8,0.57247393]
[1771777620594,0.56426866,1949.0,1947.8,0.57247393]
[1771777621284,0.56426866,1948.8,1947.8,0.57247393]
[1771777623391,0.56426866,1949.0,1948.0,0.57247393]
[1771777626391,40.80512972,1949.1,1948.0,0.57247393]
[1771777626392,0.56426866,1948.8,1948.0,0.57247393]
[1771777636598,0.56426866,1948.8,1948.2,0.57032184]
[1771777637203,0.56426866,1948.8,1948.4,0.57032184]
[1771777639103,0.56226165,1949.0,1948.4,0.57032184]
[1771777640597,0.56226165,1948.9,1948.4,0.57032184]
[1771777646206,0.56226165,1949.0,1948.4,0.57032184]
[1771777665628,0.56377846,1949.1,1948.4,0.57032184]
[1771777669434,0.56377846,1949.1,1948.6,0.55945139]
[1771777682451,0.55864874,1949.2,1948.6,0.55945139]
[1771777682653,0.55864874,1949.4,1948.8,0.55945139]
[1771777682951,0.55864874,1949.4,1949.0,0.55945139]
[1771777683450,0.56404598,1949.4,1949.0,0.55945139]
[1771777690257,40.8,1949.8,1949.0,0.55945139]
[1771777690258,0.56908872,1949.7,1949.0,0.55945139]
[1771777691051,0.57389139,1949.7,1949.0,0.55945139]
[1771777705160,0.00480267,1949.7,1949.0,0.55945139]
[1771777706371,0.59937187,1949.7,1949.0,0.55945139]
[1771777721784,0.59937187,1949.7,1948.9,0.80755955]
[1771777721785,0.60385838,1949.6,1948.9,0.80755955]
[1771777721984,0.60385838,1949.5,1948.9,0.80755955]
[1771777722179,0.60385838,1949.5,1948.9,0.55093955]
[1771777722378,0.60385838,1949.5,1948.8,0.55093955]
[1771777723283,0.60385838,1949.5,1948.5,0.55093955]
[1771777736692,0.60385838,1949.5,1948.7,0.55093955]
[1771777743395,0.60385838,1949.3,1948.7,0.55093955]
[1771777753908,0.60385838,1949.3,1948.8,0.60094427]
[1771777765614,0.60385838,1949.3,1948.6,8.30647472]
[1771777765816,0.58424846,1948.9,1948.5,0.59315733]
[1771777766715,0.58424846,1949.2,1948.6,0.59315733]
[1771777771020,0.58424846,1949.2,1948.1,0.59315733]
[1771777771324,1.17987466,1949.4,1948.1,0.59315733]
[1771777771325,0.58424846,1948.9,1948.1,0.59315733]
[1771777776128,0.58424846,1948.7,1948.1,0.59315733]
[1771777790037,0.57455171,1948.9,1948.3,0.55644765]
[1771777795939,0.57455171,1948.7,1948.3,0.55644765]
[1771777796845,0.57455171,1948.7,1948.1,0.55644765]
[1771777798742,0.57455171,1948.5,1947.9,0.55644765]
[1771777799046,0.57455171,1948.3,1947.7,1.53255028]
[1771777799236,0.57455171,1948.1,1947.8,0.55644765]
[1771777799444,0.61109418,1948.3,1947.7,0.97610263]
[1771777800246,0.61109418,1948.3,1947.7,0.99267259]
[1771777800545,0.61109418,1948.3,1947.8,0.01656996]
[1771777801445,0.61109418,1948.3,1947.9,0.01656996]
[1771777805947,0.61109418,1948.3,1947.8,0.00886362]
[1771777808151,0.60292337,1948.5,1947.8,0.00886362]
[1771777809148,0.60913725,1948.5,1947.8,0.00886362]
[1771777815958,0.60913725,1948.5,1947.9,0.00494578]
[1771777819361,0.00621388,1948.5,1948.0,0.00355544]
[1771777819550,0.03119838,1948.6,1948.0,0.00355544]
[1771777820250,0.60331897,1948.7,1948.2,0.57764576]
[1771777820450,0.60778403,1948.7,1948.2,0.57764576]
[1771777820661,0.60778403,1948.7,1948.1,0.25673]
[1771777821161,0.60778403,1948.7,1948.1,0.83437576]
[1771777823863,0.60778403,1948.7,1948.2,0.57829316]
[1771777825463,0.00446506,1948.7,1948.4,0.58073025]
[1771777825668,0.60331897,1948.8,1948.4,0.58073025]
[1771777826465,0.60331897,1949.1,1948.4,0.58073025]
[1771777826666,40.8,1949.2,1948.4,0.58073025]
[1771777826667,0.60822743,1948.8,1948.4,0.58073025]
[1771777828568,0.00490846,1948.8,1948.4,0.58073025]
[1771777828771,0.60331897,1949.0,1948.4,0.58073025]
[1771777829169,0.60331897,1949.8,1948.9,0.58073025]
[1771777829564,0.60331897,1949.6,1948.6,0.58073025]
[1771777829768,0.60861144,1949.6,1948.6,0.58073025]
[1771777835074,40.8,1949.5,1948.6,0.58073025]
[1771777835276,0.60331897,1949.4,1948.6,0.58073025]
[1771777836571,0.60331897,1949.5,1948.6,0.58073025]
[1771777842384,0.59121485,1949.4,1948.6,0.58073025]
[1771777846499,0.59121485,1949.4,1948.5,0.81341611]
[1771777847391,0.59121485,1949.4,1948.6,0.55673611]
[1771777851193,0.59121485,1949.4,1948.5,0.81341611]
[1771777851994,0.59121485,1949.4,1948.6,0.55673611]
[1771777856295,0.59121485,1949.2,1948.6,0.55673611]
[1771777862001,0.59121485,1949.3,1948.6,0.55673611]
[1771777865096,0.00529247,1949.6,1948.6,0.55673611]
[1771777865298,6.53904359,1949.5,1948.8,0.55673611]
[1771777865602,0.59121485,1949.5,1948.8,0.55673611]
[1771777866403,0.59650732,1949.6,1949.0,0.55673611]
[1771777870495,0.59650732,1949.6,1949.1,1.17962916]
[1771777870700,0.59650732,1949.6,1949.2,0.58943367]
[1771777876912,0.59650732,1949.6,1949.1,0.00648198]
[1771777877511,0.55523391,1949.4,1948.8,0.549032]
[1771777878513,0.55523391,1949.4,1948.8,0.55300396]
[1771777885425,0.55523391,1949.2,1948.7,0.549032]
[1771777886425,0.55523391,1949.2,1948.7,0.55552106]
[1771777898136,0.55523391,1949.0,1948.6,0.549032]
[1771777899039,0.55523391,1949.0,1948.2,0.57329761]
[1771777899940,0.55523391,1949.0,1948.4,0.57329761]
[1771777902439,0.58801711,1949.2,1948.4,0.57329761]
[1771777902640,0.58801711,1949.2,1948.6,0.57329761]
[1771777909641,0.58801711,1949.4,1948.8,0.57329761]
[1771777909846,5.9487336,1949.3,1948.8,0.57329761]
[1771777910047,0.58801711,1949.3,1948.8,0.57329761]
[1771777921255,6.03120392,1949.5,1948.8,0.57329761]
[1771777921455,5.95570798,1949.4,1948.8,0.57329761]
[1771777921656,5.95570798,1949.3,1948.8,0.57329761]
[1771777921857,0.58801711,1949.4,1948.8,0.57329761]
[1771777922061,6.54375686,1949.3,1948.8,0.57329761]
[1771777922257,0.58801711,1949.3,1948.8,0.57329761]
[1771777940166,0.54774253,1949.5,1948.8,0.57329761]
[1771777940370,5.95750407,1949.4,1948.8,0.57329761]
[1771777940572,0.54774253,1949.5,1948.8,0.57329761]
[1771777940874,5.95750124,1949.4,1948.8,0.57329761]
[1771777941074,0.54774253,1949.5,1948.8,0.57329761]
[1771777941375,5.95752844,1949.4,1948.8,0.57329761]
[1771777941571,0.54774253,1949.5,1948.8,0.57329761]
[1771777951389,0.553035,1949.6,1948.9,0.59383721]
[1771777952281,0.00529247,1949.6,1948.9,0.59383721]
[1771777960799,0.54924398,1949.9,1949.3,0.55296772]
[1771777961701,0.54924398,1949.9,1949.1,0.55296772]
[1771777961893,0.55544156,1949.9,1949.1,0.55296772]
[1771777963995,0.55544156,1949.9,1948.6,8.04980472]
[1771777964206,0.55544156,1949.9,1948.7,0.55296772]
[1771777965302,0.54924398,1949.7,1948.7,0.55296772]
[1771777966304,0.54924398,1949.7,1948.8,0.55296772]
[1771777979108,0.54924398,1949.8,1949.0,0.55296772]
[1771777982314,0.00619758,1949.9,1949.0,0.55296772]
[1771777982614,0.55544156,1949.9,1949.0,0.55296772]
[1771777983011,0.55544156,1949.9,1949.1,0.55296772]
[1771777983610,0.00619758,1949.9,1949.1,0.55296772]
[1771777984616,0.00619758,1949.9,1949.2,0.55296772]
[1771777984816,0.55544156,1949.9,1949.2,0.55296772]
[1771777987221,0.54924398,1949.7,1949.2,0.55296772]
[1771777994020,0.54924398,1949.7,1949.0,0.57611873]
[1771778018142,0.54924398,1949.7,1948.9,9.48584141]
[1771778018143,0.54924398,1949.7,1949.2,0.60038921]
[1771778018435,0.55805993,1949.9,1949.4,0.60038921]
[1771778020945,0.55186235,1949.8,1949.2,0.60038921]
[1771778021946,0.55186235,1949.6,1949.2,0.60038921]
[1771778024745,0.55186235,1949.6,1949.0,0.60038921]
[1771778027850,0.55186235,1949.6,1949.1,0.60038921]
[1771778041855,0.55186235,1949.5,1949.1,0.60038921]
[1771778042051,0.55186235,1949.5,1949.0,0.60038921]
[1771778042553,0.55186235,1949.3,1948.8,0.60038921]
[1771778053963,0.55186235,1949.3,1948.5,9.40489863]
[1771778053964,0.55186235,1949.3,1948.6,0.59097784]
[1771778056965,0.55186235,1949.3,1948.5,0.57147823]
[1771778061474,0.5709729,1949.1,1948.5,0.57147823]
[1771778072878,0.5709729,1949.1,1948.3,0.57147823]
[1771778073580,0.5709729,1948.9,1948.3,0.57147823]
[1771778079780,0.54819289,1949.1,1948.3,0.57147823]
[1771778082289,5.95948629,1949.0,1948.3,0.57147823]
[1771778082494,0.54819289,1949.1,1948.3,0.57147823]
[1771778082786,6.5078417,1949.0,1948.3,0.57147823]
[1771778082986,0.54819289,1949.0,1948.3,0.57147823]
[1771778086786,0.54819289,1948.8,1948.2,0.55227063]
[1771778093193,0.54819289,1948.9,1948.2,0.55227063]
[1771778103701,0.54819289,1949.1,1948.2,0.55227063]
[1771778103902,6.52028,1949.0,1948.2,0.55227063]
[1771778104101,0.54819289,1949.0,1948.2,0.55227063]
[1771778106999,0.54819289,1948.8,1948.2,0.55227063]
[1771778126323,0.55047368,1948.6,1948.2,0.55227063]
[1771778135731,0.55047368,1948.6,1948.1,0.5648192]
[1771778135926,0.55047368,1948.6,1948.2,0.55942009]
[1771778147340,0.59426096,1948.2,1947.7,0.9724174]
[1771778147535,0.59426096,1948.0,1947.7,1.56998424]
[1771778148037,0.59426096,1948.0,1947.5,0.59756684]
[1771778148339,0.59984193,1948.0,1947.5,0.60380734]
[1771778150349,0.59426096,1948.2,1947.7,0.59756684]
[1771778151343,0.60016223,1948.2,1947.7,0.59756684]
[1771778152745,0.59426096,1948.3,1947.9,0.59756684]
[1771778153139,0.59426096,1948.6,1947.9,0.59756684]
[1771778153748,0.59927814,1948.6,1947.9,0.59756684]
[1771778155149,0.59927814,1948.6,1947.7,0.59756684]
[1771778155150,0.59426096,1948.4,1947.7,0.59756684]
[1771778159849,0.59426096,1948.4,1947.8,0.59756684]
[1771778161453,0.59426096,1948.5,1948.0,0.59756684]
[1771778163750,0.00501718,1948.6,1948.0,0.59756684]
[1771778167466,0.00501718,1948.6,1948.2,0.59756684]
[1771778167667,0.59426096,1948.8,1948.4,0.59756684]
[1771778168366,0.55857456,1949.0,1948.4,0.59756684]
[1771778168567,6.72407795,1948.9,1948.4,0.59756684]
[1771778168757,0.56268836,1948.9,1948.4,0.59756684]
[1771778174370,0.0041138,1948.9,1948.4,0.59756684]
[1771778175066,0.59989866,1948.9,1948.4,0.59756684]
[1771778175466,0.0041138,1948.9,1948.4,0.59756684]
[1771778176765,15.72223554,1949.5,1948.4,0.59756684]
[1771778176971,0.59578486,1949.3,1948.4,0.59756684]
[1771778177870,0.60137521,1949.3,1948.4,0.59756684]
[1771778180067,0.60137521,1949.3,1948.6,0.55251719]
[1771778180469,0.00559035,1949.3,1948.6,0.55251719]
[1771778180668,11.45950062,1949.5,1948.6,0.55251719]
[1771778180869,0.59578486,1949.8,1948.7,0.25665]
[1771778181771,0.60070569,1949.8,1948.7,0.25665]
[1771778183371,0.60070569,1949.8,1948.8,1.18026079]
[1771778183573,0.60070569,1949.8,1948.9,0.25663]
[1771778183771,0.60070569,1949.8,1948.9,0.26250402]
[1771778197181,0.61457993,1949.6,1948.9,0.26250402]
[1771778209288,0.61457993,1949.6,1948.9,0.00587402]
[1771778209489,0.60529903,1949.4,1948.9,0.00587402]
[1771778213889,0.60529903,1949.4,1948.5,0.00612529]
[1771778215097,0.60529903,1949.4,1948.5,0.00984599]
[1771778221704,0.60529903,1949.4,1948.7,0.010598]
[1771778222905,0.60529903,1949.4,1948.6,0.25669]
[1771778223601,0.60529903,1949.4,1948.6,0.27988897]
[1771778224102,0.60529903,1949.4,1948.7,0.02319897]
[1771778225497,0.60529903,1949.4,1948.9,0.01029011]
[1771778226805,0.56159867,1949.7,1949.0,0.55067797]
[1771778227503,0.56159867,1949.7,1948.9,0.55067797]
[1771778233205,0.56159867,1949.7,1949.0,1.73405172]
[1771778235712,0.56159867,1949.7,1949.1,0.58277929]
[1771778241413,0.56159867,1949.7,1949.0,1.76207653]
[1771778244812,0.59588305,1949.6,1948.8,1.43596724]
[1771778245007,0.59588305,1949.6,1948.9,0.58277929]